[Event "33rd Pula Open 2019"]
[Site "Pula"]
[Date "2019.06.23"]
[Round "2.11"]
[White "Zinchenko, Vladimir"]
[Black "Boric, Muhamed"]
[Result "0-1"]
[ECO "B21"]
[WhiteElo "2056"]
[BlackElo "2361"]
[Annotator "ChessBase"]
[PlyCount "78"]
[EventDate "2019.06.22"]
[EventType "swiss"]
[EventCountry "CRO"]
[SourceTitle "playchess.com"]
[Source "ChessBase"]
[SourceQuality "1"]
[TimeControl "5400+30"]

1. e4 c5 2. f4 d5 3. exd5 Qxd5 4. Nc3 Qd6 5. Bb5+ Bd7 6. Bxd7+ Nxd7 7. Qf3 Rb8 8. Nge2 g6 9. b3 Bg7 10. Bb2 Ngf6 11. Nb5 Qb6 12. a4 a6 13. Na3 Qc7 14. Nc4 b5 15. Ne5 Nh5 16. axb5 axb5 17. Nxd7 Qxd7 18. Bxg7 Nxg7 19. d3 Nf5 20. O-O h5 21. Ra6 c4 22. Qc6 cxb3 23. cxb3 Rc8 24. Qxd7+ Kxd7 25. Ra7+ Rc7 26. Rxc7+ Kxc7 27. Rc1+ Kb6 28. b4 Rd8 29. Rc3 Nd4 30. Nc1 Nc6 31. Rb3 Rd4 32. Na2 Rxf4 33. g3 Rd4 34. Kf2 h4 35. Ke3 hxg3 36. hxg3 e6 37. Nc3 Rg4 38. Ne2 Rxb4 39. Rc3 Ne7 0-1

[Event "33rd Pula Open 2019"]
[Site "Pula"]
[Date "2019.06.23"]
[Round "2.12"]
[White "Jelen, Igor"]
[Black "Mrkaljevic, Jakub"]
[Result "1-0"]
[ECO "D11"]
[WhiteElo "2353"]
[BlackElo "2046"]
[Annotator "NA"]
[PlyCount "118"]
[EventDate "2019.06.22"]
[EventType "swiss"]
[EventCountry "CRO"]
[SourceTitle "playchess.com"]
[Source "ChessBase"]
[SourceQuality "1"]
[TimeControl "5400+30"]

1. d4 d5 2. c4 c6 3. Nf3 Nf6 4. e3 Bg4 5. h3 Bh5 6. g4 Bg6 7. Ne5 Nbd7 8. Nxg6 hxg6 9. Bg2 e6 10. Qb3 Qb6 11. Qc2 Bb4+ 12. Bd2 Rd8 13. O-O e5 14. c5 Qa5 15. Bxb4 Qxb4 16. a3 Qa5 17. f4 exd4 18. exd4 O-O 19. Nc3 Rfe8 20. f5 g5 21. Qd2 Nh7 22. Rfe1 Qc7 23. Re3 Rxe3 24. Qxe3 Ndf6 25. b4 Re8 26. Qf2 Qe7 27. Rc1 Kf8 28. b5 Qc7 29. bxc6 bxc6 30. Rb1 Rb8 31. Qe3 Rxb1+ 32. Nxb1 Qb8 33. Nd2 Qe8 34. Kf2 Qxe3+ 35. Kxe3 Ke7 36. Bf1 Kd7 37. Nf3 Kc7 38. Ne5 Ne4 39. Nxf7 Nhf6 40. Bd3 a5 41. Ne5 Nc3 42. Nf3 Nce4 43. Bc2 Kb7 44. Ne5 Nc3 45. Ng6 a4 46. Nf8 Nb5 47. Ne6 Nxa3 48. Bxa4 Nc4+ 49. Kf3 Nd2+ 50. Kg2 Nfe4 51. Nxg7 Nf6 52. Ne6 Nde4 53. Bc2 Kc8 54. Bxe4 Nxe4 55. h4 gxh4 56. Kh3 Kd7 57. Kxh4 Ke7 {[%emt 0:41:30]} 58. Nf4 {[%emt 1:52:33]} Nd2 {[%emt 0:00:30]} 59. Ng6+ {[%emt 0:00:30]} Kf6 {[%emt 1:11:03]} 1-0

[Event "33rd Pula Open 2019"]
[Site "Pula"]
[Date "2019.06.23"]
[Round "2.13"]
[White "Schaffert, Walter"]
[Black "Medak, Bojan"]
[Result "0-1"]
[ECO "B09"]
[WhiteElo "2055"]
[BlackElo "2342"]
[Annotator "ChessBase"]
[PlyCount "64"]
[EventDate "2019.06.22"]
[EventType "swiss"]
[EventCountry "CRO"]
[SourceTitle "playchess.com"]
[Source "ChessBase"]
[SourceQuality "1"]
[TimeControl "5400+30"]

1. e4 d6 2. d4 Nf6 3. Nc3 g6 4. f4 Bg7 5. Nf3 O-O 6. Bd3 Na6 7. O-O c5 8. d5 Rb8 9. a4 Nb4 10. Bc4 e6 11. dxe6 Bxe6 12. Bxe6 fxe6 13. e5 dxe5 14. Qe2 Nfd5 15. fxe5 Nxc3 16. bxc3 Nc6 17. Bg5 Qc7 18. Qc4 Nxe5 19. Qxe6+ Kh8 20. Nxe5 Qxe5 21. Qxe5 Bxe5 22. Bh6 Rxf1+ 23. Rxf1 Bxc3 24. Rf7 Kg8 25. Re7 a6 26. Kf1 b5 27. axb5 axb5 28. Ke2 Bf6 29. Rd7 Re8+ 30. Kd3 c4+ 31. Kd2 b4 32. Rb7 Bc3+ 0-1

[Event "33rd Pula Open 2019"]
[Site "Pula"]
[Date "2019.06.23"]
[Round "2.14"]
[White "Pecnik, Leo"]
[Black "Olesiak, Marcin"]
[Result "1-0"]
[ECO "A30"]
[WhiteElo "2334"]
[BlackElo "2038"]
[Annotator "NA"]
[PlyCount "57"]
[EventDate "2019.06.22"]
[EventType "swiss"]
[EventCountry "CRO"]
[SourceTitle "playchess.com"]
[Source "ChessBase"]
[SourceQuality "1"]
[TimeControl "5400+30"]

1. Nf3 c5 2. g3 b6 3. Bg2 Bb7 4. O-O Nf6 5. c4 e6 6. Nc3 d6 7. b3 a6 8. d4 cxd4 9. Qxd4 Nbd7 10. Rd1 Rc8 11. Ng5 Bxg2 12. Kxg2 Rc6 13. Bb2 Be7 14. Rac1 O-O 15. Nge4 Qc7 16. Nxf6+ Nxf6 17. e4 Rc8 18. a4 Bf8 19. f3 Nd7 20. Qe3 Qb7 21. Ne2 R6c7 22. Nd4 d5 23. exd5 exd5 24. Nf5 dxc4 25. Bxg7 Rc6 26. Bxf8 Re6 27. Qg5+ Kxf8 28. Rxd7 Re2+ 29. Kh3 1-0

[Event "33rd Pula Open 2019"]
[Site "Pula"]
[Date "2019.06.23"]
[Round "2.15"]
[White "Jansen, Dirk Norbert"]
[Black "Maier, Christian"]
[Result "1/2-1/2"]
[ECO "C54"]
[WhiteElo "2158"]
[BlackElo "2299"]
[Annotator "ChessBase"]
[PlyCount "60"]
[EventDate "2019.06.22"]
[EventType "swiss"]
[EventCountry "CRO"]
[SourceTitle "playchess.com"]
[Source "ChessBase"]
[SourceQuality "1"]
[TimeControl "5400+30"]

1. e4 e5 2. Nf3 Nc6 3. Bc4 Bc5 4. O-O d6 5. h3 Nf6 6. d3 h6 7. c3 Bb6 8. Re1 O-O 9. Nbd2 Re8 10. Bb5 a6 11. Ba4 Bd7 12. Nf1 Ne7 13. Bxd7 Qxd7 14. Be3 Bxe3 15. Nxe3 Ng6 16. Kh2 Rad8 17. Qc2 d5 18. Rad1 c6 19. g3 Qe6 20. a4 a5 21. Rb1 b5 22. b3 Qe7 23. axb5 dxe4 24. dxe4 cxb5 25. c4 Qc5 26. Ra1 Ra8 27. Kg2 Rec8 28. Rec1 a4 29. cxb5 Qf8 30. Nc4 axb3 1/2-1/2

[Event "33rd Pula Open 2019"]
[Site "Pula"]
[Date "2019.06.24"]
[Round "3.3"]
[White "Jovanovic, Zoran"]
[Black "Blagojevic, Marijan"]
[Result "1-0"]
[ECO "B80"]
[WhiteElo "2503"]
[BlackElo "2192"]
[Annotator "RC"]
[PlyCount "53"]
[EventDate "2019.06.22"]
[EventType "swiss"]
[EventCountry "CRO"]
[SourceTitle "playchess.com"]
[Source "ChessBase"]
[SourceQuality "1"]
[TimeControl "5400+30"]

1. e4 {[%emt 0:00:30]} c5 {[%emt 0:00:30]} 2. Ne2 {[%emt 0:00:00]} e6 {[%emt 0:00:30]} 3. Nbc3 {[%emt 0:00:00]} Nc6 {[%emt 0:00:30]} 4. g3 {[%emt 0:00:30]} Nf6 {[%emt 0:01:30]} 5. Bg2 {[%emt 0:00:00]} Be7 {[%emt 0:04:30]} 6. d4 {[%emt 0:02:00]} cxd4 {[%emt 0:01:30]} 7. Nxd4 {[%emt 0:00:00]} Nxd4 {[%emt 0:02:30]} 8. Qxd4 {[%emt 0:00:00]} d6 {[%emt 0:00:30]} 9. O-O {[%emt 0:04:30]} O-O {[%emt 0:00:30]} 10. e5 {[%emt 0:01:30]} dxe5 {[%emt 0:01:30]} 11. Qxe5 {[%emt 0:00:00]} Bd6 {[%emt 0:14:30]} 12. Qe2 {[%emt 0:01:00]} a6 {[%emt 0:09:30]} 13. Rd1 {[%emt 0:03:30]} Qc7 {[%emt 0:00:30]} 14. Bg5 {[%emt 0:04:30]} Be5 {[%emt 0:05:30]} 15. Rd3 {[%emt 0:00:00]} h6 {[%emt 0:02:30]} 16. Re1 {[%emt 0:00:00]} Nd7 {[%emt 0:03:30]} 17. Be7 {[%emt 0:01:30]} Re8 {[%emt 0:00:30]} 18. Ba3 {[%emt 0:00:00]} Bf6 {[%emt 0:03:30]} 19. Ne4 {[%emt 0:04:00]} Be7 {[%emt 0:05:30]} 20. Nd6 {[%emt 0:00:30]} Bxd6 {[%emt 0:00:30]} 21. Bxd6 {[%emt 0:00:30]} Qa5 {[%emt 0:02:30]} 22. a3 {[%emt 0:00:30]} Ra7 {[%emt 0:04:30]} 23. Qe3 {[%emt 0:02:30]} b6 {[%emt 0:00:30]} 24. Bc6 {[%emt 0:02:30]} Rd8 {[%emt 0:01:30]} 25. Red1 {[%emt 0:07:30]} Nf6 {[%emt 0:04:30]} 26. Bb4 {[%emt 0:02:30]} Rxd3 {[%emt 0:00:30]} 27. Rxd3 {[%emt 0:00:30]} 1-0

[Event "33rd Pula Open 2019"]
[Site "Pula"]
[Date "2019.06.24"]
[Round "3.4"]
[White "Fercec, Nenad"]
[Black "Oudshoorn, Arres"]
[Result "1-0"]
[ECO "B27"]
[WhiteElo "2446"]
[BlackElo "2175"]
[Annotator "NA RC"]
[PlyCount "57"]
[EventDate "2019.06.22"]
[EventType "swiss"]
[EventCountry "CRO"]
[SourceTitle "playchess.com"]
[Source "ChessBase"]
[SourceQuality "1"]
[TimeControl "5400+30"]

1. e4 {[%emt 0:00:30]} c5 {[%emt 0:00:30]} 2. Nf3 {[%emt 0:00:00]} g6 {[%emt 0:00:00]} 3. d4 {[%emt 0:00:00]} cxd4 {[%emt 0:00:00]} 4. Qxd4 {[%emt 0:00:30]} Nf6 {[%emt 0:00:00]} 5. e5 {[%emt 0:00:30]} Nc6 {[%emt 0:00:00]} 6. Qa4 {[%emt 0:00:30]} Nd5 {[%emt 0:00:00]} 7. Qe4 {[%emt 0:00:30]} Nb6 {[%emt 0:00:00]} 8. Nc3 {[%emt 0:00:00]} Bg7 {[%emt 0:00:30]} 9. Bf4 {[%emt 0:01:00]} d5 {[%emt 0:18:30]} 10. exd6 {[%emt 0:03:30]} Bf5 {[%emt 0:03:30]} 11. Qe3 {[%emt 0:00:30]} O-O {[%emt 0:00:30]} 12. O-O-O {[%emt 0:00:00]} exd6 {[%emt 0:00:30]} 13. Rxd6 {[%emt 0:05:00]} Qc8 {[%emt 0:00:30]} 14. Bh6 {[%emt 0:01:30]} Re8 {[%emt 0:06:30]} 15. Qd2 {[%emt 0:00:30]} Bh8 {[%emt 0:00:30]} 16. Bb5 {[%emt 0:22:30]} Nb4 {[%emt 0:26:30]} 17. a3 {[%emt 0:17:30]} Nxc2 {[%emt 0:34:11]} 18. Bxe8 {[%emt 0:00:30]} Qxe8 {[%emt 0:00:08]} 19. Qf4 {[%emt 0:00:30]} Nxa3 {[%emt 0:02:49]} 20. Re1 {[%emt 0:00:30]} Qc8 {[%emt 0:00:02]} 21. Nd4 {[%emt 0:00:30]} Nac4 {[%emt 0:03:43]} 22. Nxf5 {[%emt 0:01:30]} Qxf5 {[%emt 0:00:04]} 23. Qxf5 {[%emt 0:00:00]} gxf5 {[%emt 0:00:03]} 24. Rd3 {[%emt 0:00:00]} f4 {[%emt 0:00:17]} 25. Bxf4 {[%emt 0:00:30]} f5 {[%emt 0:00:40]} 26. Re7 {[%emt 0:00:30]} Bf6 {[%emt 0:00:09]} 27. Rxb7 {[%emt 0:00:30]} Nxb2 {[%emt 0:00:16]} 28. Kxb2 {[%emt 0:00:30]} Na4+ {[%emt 0:00:17]} 29. Kc2 {[%emt 0:00:00]} 1-0

[Event "33rd Pula Open 2019"]
[Site "Pula"]
[Date "2019.06.24"]
[Round "3.8"]
[White "Boric, Muhamed"]
[Black "Bochnickova, Andrea"]
[Result "1-0"]
[ECO "B80"]
[WhiteElo "2361"]
[BlackElo "2122"]
[Annotator "NA RC"]
[PlyCount "97"]
[EventDate "2019.06.22"]
[EventType "swiss"]
[EventCountry "CRO"]
[SourceTitle "playchess.com"]
[Source "ChessBase"]
[SourceQuality "1"]
[TimeControl "5400+30"]

1. Nf3 {[%emt 0:00:30]} Nf6 {[%emt 0:00:30]} 2. d4 {[%emt 0:03:30]} c5 {[%emt 0:00:30]} 3. g3 {[%emt 0:01:30]} cxd4 {[%emt 0:02:30]} 4. Nxd4 {[%emt 0:00:30]} e6 {[%emt 0:00:30]} 5. Bg2 {[%emt 0:00:30]} Be7 {[%emt 0:00:30]} 6. O-O {[%emt 0:00:30]} O-O {[%emt 0:00:30]} 7. e4 {[%emt 0:00:30]} d6 {[%emt 0:00:30]} 8. Nc3 {[%emt 0:01:30]} a6 {[%emt 0:00:30]} 9. a4 {[%emt 0:00:30]} Qc7 {[%emt 0:00:30]} 10. Re1 {[%emt 0:14:30]} Nc6 {[%emt 0:04:30]} 11. b3 {[%emt 0:02:30]} Rb8 {[%emt 0:10:30]} 12. Bb2 {[%emt 0:00:30]} Nxd4 {[%emt 0:11:30]} 13. Qxd4 {[%emt 0:00:30]} b6 {[%emt 0:00:30]} 14. Qd3 {[%emt 0:05:30]} Bb7 {[%emt 0:01:30]} 15. Nd1 {[%emt 0:00:30]} d5 {[%emt 0:04:30]} 16. exd5 {[%emt 0:00:30]} Bxd5 {[%emt 0:03:30]} 17. Bxd5 {[%emt 0:01:30]} Nxd5 {[%emt 0:06:30]} 18. Be5 {[%emt 0:00:30]} Bd6 {[%emt 0:00:00]} 19. Bxd6 {[%emt 0:00:30]} Qxd6 {[%emt 0:00:00]} 20. Qxa6 {[%emt 0:01:30]} Rbc8 {[%emt 0:01:30]} 21. Qe2 {[%emt 0:07:30]} Nb4 {[%emt 0:17:30]} 22. Ne3 {[%emt 0:02:30]} Rc3 {[%emt 0:02:30]} 23. Nc4 {[%emt 0:00:30]} Qc5 {[%emt 0:00:30]} 24. Rac1 {[%emt 0:04:30]} h5 {[%emt 0:14:14]} 25. Qd2 {[%emt 0:01:30]} Nd5 {[%emt 0:00:27]} 26. Re5 {[%emt 0:00:30]} h4 {[%emt 0:03:01]} 27. Qxc3 {[%emt 0:00:30]} Nxc3 {[%emt 0:00:10]} 28. Rxc5 {[%emt 0:00:00]} bxc5 {[%emt 0:00:02]} 29. Kg2 {[%emt 0:04:00]} hxg3 {[%emt 0:00:33]} 30. hxg3 {[%emt 0:00:30]} Rd8 {[%emt 0:00:27]} 31. Ra1 {[%emt 0:00:30]} Kf8 {[%emt 0:00:57]} 32. a5 {[%emt 0:00:30]} Nb5 {[%emt 0:01:14]} 33. a6 {[%emt 0:00:30]} Na7 {[%emt 0:00:30]} 34. Ra5 {[%emt 0:00:30]} Rc8 {[%emt 0:00:35]} 35. Nb6 {[%emt 0:00:30]} Rc7 {[%emt 0:01:28]} 36. Rxc5 {[%emt 0:00:30]} Rxc5 {[%emt 0:00:03]} 37. Nd7+ {[%emt 0:00:00]} Ke7 {[%emt 0:00:03]} 38. Nxc5 {[%emt 0:00:00]} Kd6 {[%emt 0:00:03]} 39. Ne4+ {[%emt 0:13:30]} Kd5 {[%emt 0:00:10]} 40. Kf3 {[%emt 0:00:00]} f6 {[%emt 0:01:42]} 41. Ke3 {[%emt 0:01:00]} Kc6 {[%emt 0:02:22]} 42. c4 {[%emt 0:00:30]} Kb6 {[%emt 0:00:16]} 43. b4 {[%emt 0:00:00]} Kxa6 {[%emt 0:00:34]} 44. Nc5+ {[%emt 0:00:00]} Kb6 {[%emt 0:00:05]} 45. Nxe6 {[%emt 0:00:30]} g5 {[%emt 0:00:18]} 46. Nd4 {[%emt 0:00:30]} Nc8 {[%emt 0:00:28]} 47. c5+ {[%emt 0:00:30]} Kc7 {[%emt 0:00:06]} 48. Ke4 {[%emt 0:00:30]} Ne7 {[%emt 0:00:10]} 49. b5 {[%emt 0:01:30]} 1-0

[Event "33rd Pula Open 2019"]
[Site "Pula"]
[Date "2019.06.24"]
[Round "3.9"]
[White "Van der Zon, Stef"]
[Black "Jelen, Igor"]
[Result "1/2-1/2"]
[ECO "B33"]
[WhiteElo "2148"]
[BlackElo "2353"]
[Annotator "NA RC"]
[PlyCount "59"]
[EventDate "2019.06.22"]
[EventType "swiss"]
[EventCountry "CRO"]
[SourceTitle "playchess.com"]
[Source "ChessBase"]
[SourceQuality "1"]
[TimeControl "5400+30"]

1. e4 {[%emt 0:00:30]} c5 {[%emt 0:00:30]} 2. Nf3 {[%emt 0:00:00]} Nc6 {[%emt 0:00:00]} 3. d4 {[%emt 0:00:00]} cxd4 {[%emt 0:00:00]} 4. Nxd4 {[%emt 0:00:00]} Nf6 {[%emt 0:00:00]} 5. Nc3 {[%emt 0:00:00]} e5 {[%emt 0:00:00]} 6. Ndb5 {[%emt 0:00:00]} d6 {[%emt 0:00:30]} 7. Bg5 {[%emt 0:00:00]} a6 {[%emt 0:00:00]} 8. Na3 {[%emt 0:00:30]} b5 {[%emt 0:00:00]} 9. Nd5 {[%emt 0:00:00]} Be7 {[%emt 0:00:30]} 10. Bxf6 {[%emt 0:00:00]} Bxf6 {[%emt 0:00:00]} 11. c3 {[%emt 0:00:00]} Bg5 {[%emt 0:07:00]} 12. Nc2 {[%emt 0:01:00]} O-O {[%emt 0:03:30]} 13. a4 {[%emt 0:02:30]} bxa4 {[%emt 0:01:30]} 14. Rxa4 {[%emt 0:06:30]} a5 {[%emt 0:00:30]} 15. b3 {[%emt 0:01:30]} Bb7 {[%emt 0:13:30]} 16. Bc4 {[%emt 0:05:30]} Nb8 {[%emt 0:05:30]} 17. O-O {[%emt 0:09:30]} Nd7 {[%emt 0:00:30]} 18. b4 {[%emt 0:04:30]} Rc8 {[%emt 0:17:30]} 19. Qd3 {[%emt 0:21:30]} axb4 {[%emt 0:04:30]} 20. cxb4 {[%emt 0:00:30]} Nb6 {[%emt 0:04:30]} 21. Nxb6 {[%emt 0:02:30]} Qxb6 {[%emt 0:00:00]} 22. b5 {[%emt 0:06:30]} Qc5 {[%emt 0:11:00]} 23. Na1 {[%emt 0:01:30]} Rb8 {[%emt 0:10:59]} 24. Nb3 {[%emt 0:04:30]} Qb6 {[%emt 0:00:14]} 25. Rd1 {[%emt 0:01:30]} Be7 {[%emt 0:03:55]} 26. Na5 {[%emt 0:08:30]} Ba8 {[%emt 0:01:43]} 27. Rb1 {[%emt 0:02:30]} Rfc8 {[%emt 0:04:27]} 28. g3 {[%emt 0:02:30]} Bd8 {[%emt 0:02:54]} 29. Qb3 {[%emt 0:11:46]} Qc7 {[%emt 0:06:30]} 30. Bd5 {[%emt 0:02:55]} 1/2-1/2

[Event "33rd Pula Open 2019"]
[Site "Pula"]
[Date "2019.06.24"]
[Round "3.10"]
[White "Medak, Bojan"]
[Black "Kundianok, Vladislav"]
[Result "1-0"]
[ECO "A16"]
[WhiteElo "2342"]
[BlackElo "2117"]
[Annotator "NA RC"]
[PlyCount "59"]
[EventDate "2019.06.22"]
[EventType "swiss"]
[EventCountry "CRO"]
[SourceTitle "playchess.com"]
[Source "ChessBase"]
[SourceQuality "1"]
[TimeControl "5400+30"]

1. c4 {[%emt 0:00:30]} Nf6 {[%emt 0:00:30]} 2. Nc3 {[%emt 0:00:30]} g6 {[%emt 0:00:30]} 3. g3 {[%emt 0:00:30]} Bg7 {[%emt 0:00:30]} 4. Bg2 {[%emt 0:00:30]} O-O {[%emt 0:00:30]} 5. e3 {[%emt 0:04:30]} d6 {[%emt 0:01:30]} 6. Nge2 {[%emt 0:00:30]} Nbd7 {[%emt 0:07:30]} 7. O-O {[%emt 0:00:30]} c6 {[%emt 0:04:30]} 8. b4 {[%emt 0:06:30]} d5 {[%emt 0:06:30]} 9. cxd5 {[%emt 0:00:30]} cxd5 {[%emt 0:04:30]} 10. Bb2 {[%emt 0:05:30]} Ne5 {[%emt 0:09:30]} 11. d3 {[%emt 0:06:30]} Bf5 {[%emt 0:05:30]} 12. Nf4 {[%emt 0:13:30]} g5 {[%emt 0:11:30]} 13. Ncxd5 {[%emt 0:02:30]} Nxd5 {[%emt 0:19:30]} 14. Nxd5 {[%emt 0:01:30]} Bg4 {[%emt 0:03:30]} 15. Qd2 {[%emt 0:10:30]} Nf3+ {[%emt 0:08:13]} 16. Bxf3 {[%emt 0:00:30]} Bxf3 {[%emt 0:00:02]} 17. Bxg7 {[%emt 0:02:30]} Kxg7 {[%emt 0:01:48]} 18. e4 {[%emt 0:02:30]} e6 {[%emt 0:03:40]} 19. Qe3 {[%emt 0:01:30]} g4 {[%emt 0:00:43]} 20. Nf4 {[%emt 0:00:00]} e5 {[%emt 0:01:43]} 21. Ng2 {[%emt 0:03:00]} f5 {[%emt 0:01:30]} 22. exf5 {[%emt 0:00:30]} Rxf5 {[%emt 0:02:44]} 23. Nh4 {[%emt 0:00:30]} Rf6 {[%emt 0:00:30]} 24. Qg5+ {[%emt 0:03:30]} Kf7 {[%emt 0:00:24]} 25. Qxe5 {[%emt 0:00:30]} Qxd3 {[%emt 0:00:39]} 26. Rac1 {[%emt 0:13:30]} Rf8 {[%emt 0:01:09]} 27. Rc7+ {[%emt 0:00:30]} Kg8 {[%emt 0:00:05]} 28. Qg5+ {[%emt 0:00:30]} Rg6 {[%emt 0:00:07]} 29. Nxg6 {[%emt 0:00:30]} hxg6 {[%emt 0:00:34]} 30. Qe7 {[%emt 0:00:30]} 1-0

[Event "33rd Pula Open 2019"]
[Site "Pula"]
[Date "2019.06.24"]
[Round "3.11"]
[White "Urh, Zala"]
[Black "Pecnik, Leo"]
[Result "0-1"]
[ECO "D20"]
[WhiteElo "2127"]
[BlackElo "2334"]
[Annotator "NA RC"]
[PlyCount "80"]
[EventDate "2019.06.22"]
[EventType "swiss"]
[EventCountry "CRO"]
[SourceTitle "playchess.com"]
[Source "ChessBase"]
[SourceQuality "1"]
[TimeControl "5400+30"]

1. d4 {[%emt 0:00:30]} d5 {[%emt 0:02:30]} 2. c4 {[%emt 0:00:00]} dxc4 {[%emt 0:00:00]} 3. e4 {[%emt 0:00:00]} e5 {[%emt 0:00:00]} 4. Nf3 {[%emt 0:00:30]} exd4 {[%emt 0:00:30]} 5. Bxc4 {[%emt 0:02:30]} Nc6 {[%emt 0:00:30]} 6. O-O {[%emt 0:00:00]} Be6 {[%emt 0:00:00]} 7. Bb5 {[%emt 0:00:00]} Bc5 {[%emt 0:02:00]} 8. b4 {[%emt 0:00:30]} Bb6 {[%emt 0:00:00]} 9. a4 {[%emt 0:00:30]} a6 {[%emt 0:02:00]} 10. Bxc6+ {[%emt 0:03:30]} bxc6 {[%emt 0:04:30]} 11. Bb2 {[%emt 0:04:30]} Qd6 {[%emt 0:00:30]} 12. Qd2 {[%emt 0:04:30]} Rd8 {[%emt 0:04:30]} 13. Qg5 {[%emt 0:09:30]} Ne7 {[%emt 0:09:30]} 14. e5 {[%emt 0:09:30]} Qd5 {[%emt 0:08:30]} 15. Nbd2 {[%emt 0:04:30]} Nf5 {[%emt 0:10:30]} 16. h4 {[%emt 0:02:30]} O-O {[%emt 0:04:30]} 17. Rfe1 {[%emt 0:01:30]} h6 {[%emt 0:10:30]} 18. Qf4 {[%emt 0:01:30]} c5 {[%emt 0:02:30]} 19. Ne4 {[%emt 0:08:30]} Qb3 {[%emt 0:14:30]} 20. Bc1 {[%emt 0:12:30]} cxb4 {[%emt 0:02:58]} 21. h5 {[%emt 0:05:30]} Kh8 {[%emt 0:03:07]} 22. g4 {[%emt 0:04:30]} Ne7 {[%emt 0:00:15]} 23. g5 {[%emt 0:00:30]} Nf5 {[%emt 0:01:48]} 24. gxh6 {[%emt 0:04:30]} Nxh6 {[%emt 0:00:57]} 25. Kh2 {[%emt 0:01:19]} Ng4+ {[%emt 0:02:33]} 26. Kg2 {[%emt 0:00:10]} Qd5 {[%emt 0:04:52]} 27. Rh1 {[%emt 0:01:43]} Nh6 {[%emt 0:04:43]} 28. Rg1 {[%emt 0:01:40]} Bg4 {[%emt 0:00:41]} 29. Nh4 {[%emt 0:01:35]} Rde8 {[%emt 0:03:50]} 30. f3 {[%emt 0:03:40]} Bc8 {[%emt 0:00:19]} 31. Nf6 {[%emt 0:02:46]} Qxe5 {[%emt 0:00:19]} 32. Nxe8 {[%emt 0:00:05]} Rxe8 {[%emt 0:00:38]} 33. Ra2 {[%emt 0:01:49]} Qe6 {[%emt 0:00:55]} 34. Qg3 {[%emt 0:02:57]} Qf6 {[%emt 0:01:01]} 35. Bg5 {[%emt 0:00:47]} Qe6 {[%emt 0:00:07]} 36. Raa1 {[%emt 0:01:47]} Nf5 {[%emt 0:00:05]} 37. Nxf5 {[%emt 0:00:22]} Qxf5 {[%emt 0:00:30]} 38. Rae1 {[%emt 0:00:43]} Re6 {[%emt 0:00:26]} 39. Kh2 {[%emt 0:00:41]} d3 {[%emt 0:00:20]} 40. Rxe6 {[%emt 0:02:06]} Bxg1+ {[%emt 0:00:23]} 0-1

[Event "33rd Pula Open 2019"]
[Site "Pula"]
[Date "2019.06.24"]
[Round "3.12"]
[White "Meglic, Jaka"]
[Black "Trkulja, Goran"]
[Result "0-1"]
[ECO "B42"]
[WhiteElo "2121"]
[BlackElo "2299"]
[Annotator "NA"]
[PlyCount "116"]
[EventDate "2019.06.22"]
[EventType "swiss"]
[EventCountry "CRO"]
[SourceTitle "playchess.com"]
[Source "ChessBase"]
[SourceQuality "1"]
[TimeControl "5400+30"]

1. e4 {[%emt 0:00:30]} c5 {[%emt 0:06:30]} 2. Nf3 {[%emt 0:00:30]} d6 {[%emt 0:00:00]} 3. d4 {[%emt 0:01:30]} cxd4 {[%emt 0:00:00]} 4. Nxd4 {[%emt 0:00:30]} Nf6 {[%emt 0:00:30]} 5. Nc3 {[%emt 0:02:30]} a6 {[%emt 0:00:00]} 6. Be3 {[%emt 0:01:30]} e6 {[%emt 0:00:00]} 7. Bd3 {[%emt 0:04:30]} b5 {[%emt 0:02:30]} 8. a3 {[%emt 0:00:30]} Bb7 {[%emt 0:03:30]} 9. O-O {[%emt 0:01:30]} Nbd7 {[%emt 0:03:30]} 10. f4 {[%emt 0:02:30]} Qc7 {[%emt 0:00:30]} 11. Qf3 {[%emt 0:01:30]} Nc5 {[%emt 0:01:30]} 12. Rae1 {[%emt 0:02:30]} g6 {[%emt 0:04:30]} 13. Kh1 {[%emt 0:02:30]} Bg7 {[%emt 0:05:30]} 14. Bg1 {[%emt 0:01:30]} O-O {[%emt 0:00:30]} 15. Qe2 {[%emt 0:05:30]} d5 {[%emt 0:07:30]} 16. e5 {[%emt 0:04:30]} Nfe4 {[%emt 0:03:30]} 17. Bxe4 {[%emt 0:00:30]} Nxe4 {[%emt 0:00:30]} 18. Nd1 {[%emt 0:02:30]} Rae8 {[%emt 0:03:30]} 19. Nf2 {[%emt 0:05:30]} g5 {[%emt 0:04:30]} 20. Nd3 {[%emt 0:12:30]} gxf4 {[%emt 0:05:30]} 21. Qg4 {[%emt 0:01:30]} f5 {[%emt 0:06:30]} 22. Qxf4 {[%emt 0:01:30]} Qf7 {[%emt 0:01:30]} 23. Be3 {[%emt 0:01:30]} Kh8 {[%emt 0:00:30]} 24. g4 {[%emt 0:04:30]} Qg6 {[%emt 0:01:30]} 25. g5 {[%emt 0:08:30]} Rg8 {[%emt 0:07:30]} 26. Rg1 {[%emt 0:00:30]} Bf8 {[%emt 0:04:30]} 27. Rg2 {[%emt 0:03:30]} a5 {[%emt 0:05:30]} 28. Reg1 {[%emt 0:00:00]} Nc5 {[%emt 0:03:36]} 29. Ne1 {[%emt 0:05:00]} b4 {[%emt 0:03:56]} 30. axb4 {[%emt 0:00:30]} axb4 {[%emt 0:00:04]} 31. b3 {[%emt 0:00:00]} Nd7 {[%emt 0:01:39]} 32. Nef3 {[%emt 0:00:00]} Bg7 {[%emt 0:00:44]} 33. Bd2 {[%emt 0:01:30]} Bf8 {[%emt 0:03:28]} 34. h4 {[%emt 0:07:50]} Qh5 {[%emt 0:00:58]} 35. Kh2 {[%emt 0:00:39]} Bc5 {[%emt 0:00:10]} 36. Be3 {[%emt 0:02:50]} Nf8 {[%emt 0:00:44]} 37. Qg3 {[%emt 0:07:04]} Ng6 {[%emt 0:01:19]} 38. Bf2 {[%emt 0:02:43]} Re7 {[%emt 0:04:32]} 39. Kh3 {[%emt 0:00:11]} Rc8 {[%emt 0:00:17]} 40. Ra1 {[%emt 0:02:05]} Kg8 {[%emt 0:00:29]} 41. Ne1 {[%emt 0:00:32]} Rec7 {[%emt 0:03:02]} 42. Rh2 {[%emt 0:02:49]} Kf7 {[%emt 0:01:27]} 43. Qf3 {[%emt 0:00:44]} Qg4+ {[%emt 0:01:32]} 44. Qxg4 {[%emt 0:00:07]} fxg4+ {[%emt 0:00:04]} 45. Kxg4 {[%emt 0:00:34]} Nxe5+ {[%emt 0:00:05]} 46. Kh3 {[%emt 0:00:48]} Ng6 {[%emt 0:00:33]} 47. h5 {[%emt 0:00:25]} Nf4+ {[%emt 0:00:34]} 48. Kg4 {[%emt 0:00:17]} e5 {[%emt 0:01:28]} 49. Nb5 {[%emt 0:00:46]} Rd7 {[%emt 0:01:00]} 50. Kf5 {[%emt 0:00:28]} Bf8 {[%emt 0:01:10]} 51. Kxe5 {[%emt 0:00:24]} Bg7+ {[%emt 0:00:35]} 52. Kxf4 {[%emt 0:00:03]} Bxa1 {[%emt 0:00:06]} 53. Bd4 {[%emt 0:00:55]} Bxd4 {[%emt 0:00:23]} 54. Nxd4 {[%emt 0:00:02]} Re7 {[%emt 0:00:57]} 55. Nef3 {[%emt 0:00:30]} Re4+ {[%emt 0:00:06]} 56. Kf5 {[%emt 0:00:04]} Rf8 {[%emt 0:00:58]} 57. g6+ {[%emt 0:00:29]} Kg7+ {[%emt 0:00:23]} 58. Kg5 {[%emt 0:00:14]} h6# {[%emt 0:00:10]} 0-1